fUSD/lending_fUSD_20250502
["ID","MTS","AMOUNT","RATE_DAILY","PERIOD"]
[359634952,1746201037111,-450.0,0.00019765,2]
[359634953,1746201037122,-450.0,0.00019765,2]
[359634954,1746201037131,-450.0,0.00019765,2]
[359634955,1746201037141,-450.0,0.00019765,2]
[359634956,1746201037150,-450.0,0.00019765,2]
[359634957,1746201037160,-450.0,0.00019765,2]
[359634958,1746201037170,-450.0,0.00019765,2]
[359634959,1746201037179,-450.0,0.00019765,2]
[359634960,1746201037188,-1055.76,0.00019765,2]
[359634961,1746201037198,-725.46,0.00019765,2]
[359634962,1746201037208,-450.0,0.00019765,2]
[359634963,1746201037219,-450.0,0.00019765,2]
[359634964,1746201037349,-1825.65,0.00019765,2]
[359634965,1746201037362,-450.0,0.00019765,2]
[359634966,1746201037371,-450.0,0.00019765,2]
[359634967,1746201037381,-450.0,0.00019765,2]
[359634968,1746201037390,-450.0,0.00019765,2]
[359634969,1746201037399,-900.07,0.00019765,2]
[359634970,1746201037409,-711.95,0.00019765,2]
[359634971,1746201037418,-450.0,0.00019765,2]
[359634972,1746201037427,-450.0,0.00019765,2]
[359634973,1746201037437,-450.0,0.00019765,2]
[359634974,1746201037447,-450.0,0.00019765,2]
[359634975,1746201037456,-450.0,0.00019765,2]
[359634976,1746201037466,-450.0,0.00019765,2]
[359634977,1746201037477,-450.0,0.00019765,2]
[359634978,1746201037486,-2251.24,0.00019765,2]
[359634979,1746201037496,-450.0,0.00019765,2]
[359634980,1746201037506,-686.08,0.00019765,2]
[359634981,1746201037516,-300.3202691,0.00019765,2]
[359634982,1746201037530,-450.0,0.00019765,2]
[359634983,1746201037540,-450.0,0.00019765,2]
[359634984,1746201037549,-450.0,0.00019765,2]
[359634985,1746201037559,-566.82,0.00019765,2]
[359634986,1746201037569,-1295.05,0.00019765,2]
[359634987,1746201037579,-692.37,0.00019765,2]
[359634988,1746201037589,-463.15,0.00019765,2]
[359634989,1746201037600,-450.0,0.00019765,2]
[359634990,1746201037611,-450.0,0.00019765,2]
[359634991,1746201037621,-738.81,0.00019765,2]
[359634992,1746201037631,-450.0,0.00019765,2]
[359634993,1746201037641,-2152.76,0.00019765,2]
[359634994,1746201037651,-1401.63,0.00019765,2]
[359634995,1746201037661,-450.0,0.00019765,2]
[359634996,1746201037671,-450.0,0.00019765,2]
[359634997,1746201037680,-450.0,0.00019765,2]
[359634998,1746201037690,-247.04216546,0.00019765,2]
[359634999,1746201037700,-865.45,0.00019765,2]
[359635000,1746201037711,-877.77,0.00019765,2]
[359635001,1746201037721,-450.0,0.00019765,2]
[359635002,1746201037730,-856.01,0.00019765,2]
[359635003,1746201037740,-450.0,0.00019765,2]
[359635004,1746201037749,-450.0,0.00019765,2]
[359635005,1746201037759,-754.89,0.00019765,2]
[359635006,1746201037768,-450.0,0.00019765,2]
[359635007,1746201037778,-520.44,0.00019765,2]
[359635009,1746201037788,-450.0,0.00019765,2]
[359635010,1746201037797,-1304.58,0.00019765,2]
[359635011,1746201037806,-450.0,0.00019765,2]
[359635012,1746201037815,-1006.48,0.00019765,2]
[359635013,1746201037824,-450.0,0.00019765,2]
[359635014,1746201037836,-450.0,0.00019765,2]
[359635015,1746201037847,-1359.24,0.00019765,2]
[359635017,1746201037859,-450.0,0.00019765,2]
[359635018,1746201037868,-583.31,0.00019765,2]
[359635019,1746201037877,-450.0,0.00019765,2]
[359635020,1746201037888,-613.24,0.00019765,2]
[359635021,1746201037898,-1670.55,0.00019765,2]
[359635022,1746201037908,-563.2,0.00019765,2]
[359635023,1746201037917,-679.3,0.00019765,2]
[359635025,1746201037926,-823.82,0.00019766,2]
[359635026,1746201037935,-500.0,0.00019773,2]
[359635028,1746201037944,-500.0,0.00019773,2]
[359635030,1746201037953,-500.0,0.00019773,2]
[359635031,1746201037962,-500.0,0.00019773,2]
[359635033,1746201037971,-1375.4094293,0.00019799,2]
[359635034,1746201037980,-1000.0,0.000198,2]
[359635036,1746201037989,-423.91326703,0.0001981,2]
[359635038,1746201037998,-171.79080425,0.00019821,2]
[359635039,1746201038007,-2767.03223741,0.00019874,2]
[359635041,1746201038016,-5800.0,0.00019892,2]
[359635042,1746201038025,-5800.0,0.000199,2]
[359635044,1746201038034,-1148.51254037,0.000199,2]
[359635045,1746201038042,-261.27175557,0.000199,2]
[359635047,1746201038052,-1268.13976335,0.000199,2]
[359635048,1746201038061,-2767.03223741,0.000199,2]
[359635049,1746201038070,-332.49967806,0.000199,2]
[359635050,1746201038079,-12391.11368077,0.000199,2]
[359635051,1746201038088,-353.03858433,0.000199,2]
[359635052,1746201038098,-1155.26092188,0.000199,2]
[359635053,1746201038107,-189.39229872,0.000199,3]
[359635054,1746201038118,-171.79080425,0.000199,2]
[359635055,1746201038127,-380.78960975,0.000199,2]
[359635056,1746201038138,-151.0,0.00019911,2]
[359635057,1746201038147,-151.0,0.00019912,2]
[359635058,1746201038157,-151.0,0.00019913,2]
[359635059,1746201038167,-151.0,0.00019913,2]
[359635060,1746201038178,-151.0,0.00019914,2]
[359635061,1746201038189,-151.0,0.00019914,2]
[359635062,1746201038201,-151.0,0.00019915,2]
[359635063,1746201038211,-151.0,0.00019916,2]
[359635064,1746201038221,-2184.629,0.00019943,2]
[359635065,1746201038230,-167.496,0.00019943,2]
[359635066,1746201038239,-151.0,0.00019943,2]
[359635067,1746201038248,-207.4,0.00019953,2]
[359635068,1746201038257,-618.24406251,0.00019954,2]
[359635069,1746201038267,-151.0,0.00019954,2]
[359635070,1746201038276,-151.0,0.00019954,2]
[359635071,1746201038286,-668.65185757,0.00019954,2]
[359635072,1746201038295,-797.0,0.00019955,2]
[359635073,1746201038305,-6753.0,0.00019955,2]
[359635074,1746201038315,-4006.0,0.00019955,2]
[359635075,1746201038324,-878.0,0.00019955,2]
[359635076,1746201038334,-543.3110312,0.00019973,2]
[359635077,1746201038343,-306.32642117,0.00019973,2]
[359635078,1746201038353,-502.14334775,0.00019973,2]
[359635079,1746201038362,-500.0,0.00019973,2]
[359635080,1746201038372,-505.99606481,0.00019973,2]
[359635081,1746201038381,-500.0,0.00019973,2]
[359635082,1746201038391,-187.65011133,0.00019973,2]
[359635083,1746201038400,-500.0,0.00019973,2]
[359635084,1746201038412,-500.0,0.00019973,2]
[359635085,1746201038421,-500.0,0.00019973,2]
[359635086,1746201038431,-500.0,0.00019973,2]
[359635087,1746201038441,-500.0,0.00019973,2]
[359635088,1746201038450,-500.0,0.00019973,2]
[359635090,1746201038461,-500.0,0.00019973,2]
[359635092,1746201038470,-501.10561664,0.00019973,2]
[359635094,1746201038480,-500.0,0.00019973,2]
[359635096,1746201038489,-500.0,0.00019999,2]
[359635098,1746201038498,-598.18372447,0.00019999,2]
[359635100,1746201038507,-300.0,0.00019999,2]
[359635102,1746201038517,-300.0,0.00019999,2]
[359635105,1746201038528,-500.0,0.00019999,2]
[359635106,1746201038538,-666.0,0.00019999,2]
[359635107,1746201038548,-300.0,0.00019999,2]
[359635108,1746201038558,-450.0,0.00019999,2]
[359635109,1746201038567,-450.0,0.00019999,2]
[359635110,1746201038578,-991.8265,0.00019999,2]
[359635111,1746201038587,-823.82,0.00019999,2]
[359635112,1746201038597,-823.82,0.00019999,2]
[359635113,1746201038607,-823.82,0.00019999,2]
[359635114,1746201038616,-823.82,0.00019999,2]
[359635115,1746201038626,-823.82,0.00019999,2]
[359635116,1746201038636,-823.82,0.00019999,2]
[359635117,1746201038645,-823.82,0.00019999,2]
[359635118,1746201038655,-823.82,0.00019999,2]
[359635119,1746201038664,-823.82,0.00019999,2]
[359635120,1746201038673,-823.82,0.00019999,2]
[359635121,1746201038683,-823.82,0.00019999,2]
[359635122,1746201038693,-823.82,0.00019999,2]
[359635123,1746201038703,-823.82,0.00019999,2]
[359635124,1746201038712,-823.82,0.00019999,2]
[359635125,1746201038722,-823.82,0.00019999,2]
[359635126,1746201038732,-823.82,0.00019999,2]
[359635127,1746201038742,-823.82,0.00019999,2]
[359635128,1746201038751,-823.82,0.00019999,2]
[359635129,1746201038760,-823.82,0.00019999,2]
[359635130,1746201038770,-823.82,0.00019999,2]
[359635131,1746201038780,-823.82,0.00019999,2]
[359635132,1746201038789,-823.92570618,0.00019999,2]
[359635133,1746201038798,-450.0,0.00019999,2]
[359635134,1746201038807,-673.04,0.00019999,2]
[359635135,1746201038817,-500.0,0.00019999,2]
[359635136,1746201038827,-500.0,0.00019999,2]
[359635137,1746201038836,-500.0,0.00019999,2]
[359635138,1746201038845,-500.0,0.00019999,2]
[359635139,1746201038854,-500.0,0.00019999,2]
[359635140,1746201038864,-500.0,0.00019999,2]
[359635141,1746201038873,-480.10416411,0.00019999,2]
[359635142,1746201038882,-874.0,0.00019999,2]
[359635143,1746201038892,-692.25841914,0.0002,2]
[359635144,1746201038901,-733299.44537938,0.0002,2]
[359635145,1746201038910,-512241.22543181,0.0002,2]
[359635146,1746201039662,-10267.07414325,0.0002,2]
[359635147,1746201039674,-450.0,0.0002,2]
[359635148,1746201039686,-3041.70650948,0.0002,2]
[359635156,1746201040635,-544.18,0.00019763,2]
[359635157,1746201040645,-500.89,0.00019763,2]
[359635158,1746201040655,-450.0,0.00019764,2]
[359635159,1746201040664,-450.0,0.00019764,2]
[359635160,1746201040674,-450.0,0.00019764,2]
[359635161,1746201040685,-450.0,0.00019765,2]
[359635162,1746201040694,-247.85985594,0.000199,2]
[359635163,1746201040703,-153.0,0.00019955,2]
[359635164,1746201040714,-217.11897616,0.0001999,2]
[359635165,1746201040723,-217.11897616,0.0001999,2]
[359635166,1746201040734,-3843.92601185,0.0002,2]
[359635167,1746201040746,-2047.44170637,0.0002,2]
[359635168,1746201040766,-93280.42686157,0.0002,2]
[359635169,1746201040778,-3400.15251366,0.0002,2]
[359635170,1746201040791,-14156.7114511,0.0002,2]
[359635171,1746201040803,-162790.67809986,0.0002,2]
[359635172,1746201040814,-450.319,0.0002,2]
[359635173,1746201041223,-450.0,0.00019763,2]
[359635174,1746201041233,-450.0,0.00019765,2]
[359635175,1746201041242,-450.0,0.00019765,2]
[359635176,1746201041252,-1563555.74070958,0.0002,2]
[359635177,1746201041261,-36067.46680289,0.0002,2]
[359635178,1746201041271,-1378759.96447946,0.0002,2]
[359635179,1746201041280,-3950.0,0.0002,2]
[359635180,1746201041290,-1252.18185823,0.0002,2]
[359635181,1746201041299,-11846.75954341,0.0002,2]
[359635182,1746201041309,-1010.35543281,0.0002,2]
[359635183,1746201041318,-1762.8695288,0.0002,2]
[359635184,1746201041327,-211.0,0.0002,2]
[359635185,1746201041337,-88973.10531121,0.0002,2]
[359635186,1746201041347,-268.0,0.0002,2]
[359635187,1746201041358,-268.0,0.0002,2]
[359635188,1746201041368,-268.0,0.0002,2]
[359635189,1746201041378,-268.0,0.0002,2]
[359635190,1746201041387,-268.0,0.0002,2]
[359635191,1746201041397,-268.0,0.0002,2]
[359635192,1746201041406,-268.0,0.0002,2]
[359635193,1746201041416,-268.0,0.0002,2]
[359635194,1746201041426,-268.0,0.0002,2]
[359635195,1746201041436,-268.0,0.0002,2]
[359635196,1746201041445,-268.0,0.0002,2]
[359635197,1746201041455,-268.0,0.0002,2]
[359635198,1746201041464,-268.0,0.0002,2]
[359635199,1746201041474,-268.0,0.0002,2]
[359635200,1746201041541,-268.0,0.0002,2]
[359635201,1746201041550,-268.0,0.0002,2]
[359635202,1746201041559,-1580.55,0.0002,2]
[359635203,1746201041568,-5653.70570147,0.0002,2]
[359635204,1746201041578,-163.24639797,0.0002,2]
[359635205,1746201041587,-1713.39,0.0002,2]
[359635206,1746201041597,-250.0,0.0002,2]
[359635207,1746201041607,-250.0,0.0002,2]
[359635208,1746201041617,-250.0,0.0002,2]
[359635209,1746201041626,-250.0,0.0002,2]
[359635210,1746201041635,-250.0,0.0002,2]
[359635211,1746201041644,-250.0,0.0002,2]
[359635212,1746201041653,-250.0,0.0002,2]
[359635213,1746201041663,-250.0,0.0002,2]
[359635214,1746201041672,-250.0,0.0002,2]
[359635215,1746201041681,-250.0,0.0002,2]
[359635216,1746201041691,-367.2,0.0002,2]
[359635217,1746201041700,-1246110.98720306,0.0002,2]
[359635218,1746201041713,-290.01329142,0.0002,2]
[359635219,1746201041723,-500.0,0.0002,2]
[359635220,1746201041735,-41005.98904047,0.0002,2]
[359635221,1746201041746,-26205.76030254,0.0002,2]
[359635222,1746201041757,-97421.00000003,0.0002,2]
[359635223,1746201041815,-450.0,0.00019763,2]
[359635224,1746201041825,-98.72163093,0.00019764,2]
[359635249,1746201046010,-790.49,0.00019763,2]
[359635251,1746201046020,-450.0,0.00019763,2]
[359635253,1746201046029,-351.27836907,0.00019764,2]
[359635254,1746201046039,-631.86,0.00019764,2]
[359635255,1746201046049,-686.39,0.00019764,2]
[359635256,1746201046060,-450.0,0.00019765,2]
[359635257,1746201046070,-393.32428602,0.000199,2]
[359635258,1746201046080,-151.0,0.00019937,2]
[359635259,1746201046090,-31469.35527558,0.0002,2]
[359635269,1746201046636,-699984.59609598,0.0002,2]
[359635270,1746201046657,-21660.1472,0.0002,2]
[359635271,1746201046669,-742.14000001,0.0002,2]
[359635272,1746201088445,215.0,0.0001833,2]
[359635273,1746201117147,154.5,0.00019011,2]
[359635274,1746201204916,-1000.0,0.00022,12]
[359635275,1746201248961,165.49,0.00019487,2]
[359635277,1746201297798,2724.52,0.0001892,2]
[359635278,1746201306062,1568.88,0.00019,2]
[359635279,1746201307816,1568.88,0.00019,2]
[359635280,1746201309382,150.0,0.00018899,2]
[359635281,1746201340346,484.87577657,0.0003287,60]
[359635282,1746201344314,250.0,0.00017,2]
[359635283,1746201345390,300.0,0.00019,2]
[359635284,1746201462226,7276.87120332,0.00018,2]
[359635285,1746201502327,500.0,0.00032876,120]
[359635286,1746201502452,506.71,0.00032876,120]
[359635287,1746201507343,473.65,0.00018815,2]
[359635288,1746201668588,150.011309,0.00032876,60]
[359635289,1746201671439,1000.0,0.00018838,2]
[359635290,1746201695752,416.66,0.00032876,60]
[359635291,1746201702463,2609.03,0.00018823,2]
[359635295,1746201786693,250.0,0.00018844,7]
[359635296,1746201927025,17156.64,0.00018854,2]
[359635297,1746201955962,4000.0,0.00018853,2]
[359635298,1746202036828,1852.42,0.0001885,2]
[359635299,1746202047572,1170.68,0.00016934,2]
[359635300,1746202047852,1170.68,0.00019198,2]
[359635301,1746202072278,1003.0,0.00032876,60]
[359635302,1746202092590,274.4,0.00018859,2]
[359635303,1746202123724,155.09,0.00018913,2]
[359635304,1746202130418,189.07,0.00018913,2]
[359635327,1746202232176,-273.098363,0.00019545,2]
[359635329,1746202232185,-389.93793726,0.000196,2]
[359635331,1746202232195,-1200.0,0.00019662,2]
[359635333,1746202232204,-1456.84414144,0.00019662,2]
[359635335,1746202232214,-300.0,0.00019662,2]
[359635337,1746202232224,-478.36897376,0.00019663,2]
[359635339,1746202232234,-2691.53329373,0.00019663,2]
[359635340,1746202232243,-2080.9007,0.00019663,2]
[359635342,1746202232254,-300.0,0.00019688,2]
[359635343,1746202232264,-1456.84414142,0.00019688,2]
[359635344,1746202232274,-2691.53329368,0.00019689,2]
[359635345,1746202232283,-6447.6405,0.0001971,2]
[359635346,1746202232294,-264.0592,0.0001971,2]
[359635347,1746202232304,-193.88045855,0.0001971,2]
[359635348,1746202232315,-1456.84414142,0.00019715,2]
[359635349,1746202232324,-2691.53329368,0.00019716,2]
[359635350,1746202232334,-1456.84414142,0.00019741,2]
[359635351,1746202232344,-2691.53329368,0.00019742,2]
[359635352,1746202232353,-215.0,0.0001976,2]
[359635353,1746202232362,-500.0,0.00019761,2]
[359635354,1746202232371,-401.39584113,0.00019761,2]
[359635355,1746202232381,-187.82403186,0.00019762,2]
[359635356,1746202232390,-500.73,0.00019762,2]
[359635357,1746202232400,-500.0,0.00019762,2]
[359635358,1746202232411,-500.0,0.00019762,2]
[359635359,1746202232420,-500.0,0.00019762,2]
[359635360,1746202232430,-219.69139074,0.00019762,2]
[359635361,1746202232440,-177.54001047,0.00019762,2]
[359635362,1746202232451,-450.0,0.00019762,2]
[359635363,1746202232460,-450.0,0.00019762,2]
[359635364,1746202232471,-450.0,0.00019762,2]
[359635366,1746202232480,-450.0,0.00019762,2]
[359635368,1746202232489,-450.0,0.00019762,2]
[359635369,1746202232498,-460.02,0.00019762,2]
[359635370,1746202232507,-450.0,0.00019762,2]
[359635371,1746202232516,-461.52,0.00019762,2]
[359635372,1746202232526,-450.0,0.00019762,2]
[359635373,1746202232535,-450.0,0.00019762,2]
[359635374,1746202232545,-488.43,0.00019762,2]
[359635375,1746202232555,-450.0,0.00019762,2]
[359635376,1746202232563,-450.0,0.00019762,2]
[359635377,1746202232573,-450.0,0.00019762,2]
[359635379,1746202232582,-931.34,0.00019762,2]
[359635381,1746202232592,-450.0,0.00019762,2]
[359635383,1746202232602,-450.0,0.00019762,2]
[359635385,1746202232611,-450.0,0.00019762,2]
[359635387,1746202232620,-250.0,0.00019762,2]
[359635389,1746202232630,-450.0,0.00019762,2]
[359635391,1746202232639,-450.0,0.00019762,2]
[359635393,1746202232648,-450.0,0.00019762,2]
[359635396,1746202232657,-450.0,0.00019762,2]
[359635399,1746202232667,-463.37,0.00019762,2]
[359635402,1746202232676,-450.0,0.00019762,2]
[359635404,1746202232685,-500.0,0.00019762,2]
[359635406,1746202232695,-450.0,0.00019762,2]
[359635407,1746202232704,-450.0,0.00019762,2]
[359635408,1746202232714,-736.823139,0.00019762,2]
[359635409,1746202232723,-450.0,0.00019762,2]
[359635410,1746202232732,-450.0,0.00019762,2]
[359635411,1746202232742,-450.0,0.00019762,2]
[359635412,1746202232751,-450.0,0.00019762,2]
[359635413,1746202232760,-450.0,0.00019762,2]
[359635414,1746202232770,-450.0,0.00019762,2]
[359635415,1746202232780,-569.961538,0.00019762,2]
[359635416,1746202232790,-450.0,0.00019762,2]
[359635417,1746202232799,-450.0,0.00019762,2]
[359635418,1746202232808,-450.0,0.00019762,2]
[359635419,1746202232818,-450.0,0.00019762,2]
[359635420,1746202232828,-450.0,0.00019762,2]
[359635421,1746202232839,-450.0,0.00019762,2]
[359635422,1746202232849,-615.83,0.00019762,2]
[359635423,1746202232859,-450.0,0.00019762,2]
[359635424,1746202232869,-450.0,0.00019762,2]
[359635425,1746202232884,-450.0,0.00019762,2]
[359635426,1746202232893,-450.0,0.00019762,2]
[359635427,1746202232903,-450.0,0.00019762,2]
[359635428,1746202232915,-450.0,0.00019762,2]
[359635429,1746202232925,-450.0,0.00019762,2]
[359635430,1746202232935,-450.0,0.00019762,2]
[359635431,1746202232945,-450.0,0.00019762,2]
[359635432,1746202232955,-1316.15,0.00019762,2]
[359635433,1746202232965,-450.0,0.00019762,2]
[359635434,1746202232974,-175.17945579,0.00019762,2]
[359635435,1746202232988,-274.82054421,0.00019762,2]
[359635436,1746202232998,-450.0,0.00019762,2]
[359635437,1746202233007,-94.5142985,0.00019762,2]
[359635438,1746202233019,-315.2126446,0.00019762,2]
[359635439,1746202233031,-40.2730569,0.00019762,2]
[359635440,1746202233041,-450.0,0.00019762,2]
[359635441,1746202233051,-197.27806838,0.00019762,2]
[359635442,1746202233063,-252.72193162,0.00019762,2]
[359635443,1746202233073,-450.0,0.00019762,2]
[359635444,1746202233083,-460.38,0.00019762,2]
[359635445,1746202233093,-450.0,0.00019762,2]
[359635446,1746202233103,-450.0,0.00019762,2]
[359635447,1746202233113,-564.89806838,0.00019762,2]
[359635448,1746202233125,-472.90193162,0.00019762,2]
[359635449,1746202233135,-619.33,0.00019762,2]
[359635450,1746202233145,-82.66427259,0.00019762,2]
[359635451,1746202233158,-367.33572741,0.00019762,2]
[359635452,1746202233169,-450.0,0.00019762,2]
[359635453,1746202233179,-700.59,0.00019762,2]
[359635454,1746202233189,-450.0,0.00019762,2]
[359635455,1746202233199,-450.0,0.00019762,2]
[359635456,1746202233209,-569.43,0.00019762,2]
[359635457,1746202233219,-612.26,0.00019762,2]
[359635458,1746202233228,-450.0,0.00019762,2]
[359635459,1746202233237,-601.87,0.00019762,2]
[359635460,1746202233247,-650.73,0.00019762,2]
[359635461,1746202233257,-489.86,0.00019762,2]
[359635462,1746202233267,-450.0,0.00019762,2]
[359635463,1746202233276,-450.0,0.00019762,2]
[359635464,1746202233286,-450.0,0.00019762,2]
[359635465,1746202233296,-450.0,0.00019762,2]
[359635466,1746202233306,-450.0,0.00019762,2]
[359635467,1746202233316,-450.0,0.00019762,2]
[359635468,1746202233326,-450.0,0.00019762,2]
[359635469,1746202233336,-450.0,0.00019762,2]
[359635470,1746202233346,-450.0,0.00019762,2]
[359635471,1746202233355,-664.17,0.00019762,2]
[359635472,1746202233366,-450.0,0.00019762,2]
[359635473,1746202233376,-51.43719969,0.00019762,2]
[359635474,1746202233389,-398.56280031,0.00019762,2]
[359635475,1746202233399,-319.26989535,0.00019762,2]
[359635476,1746202233424,-130.73010465,0.00019762,2]
[359635477,1746202233434,-271.43535455,0.00019762,2]
[359635478,1746202233447,-192.84464545,0.00019762,2]
[359635479,1746202233458,-450.0,0.00019762,2]
[359635480,1746202233469,-450.0,0.00019762,2]
[359635481,1746202233479,-450.0,0.00019762,2]
[359635482,1746202233489,-450.0,0.00019762,2]
[359635483,1746202233498,-450.0,0.00019762,2]
[359635484,1746202233508,-599.68,0.00019762,2]
[359635485,1746202233519,-450.0,0.00019762,2]
[359635486,1746202233529,-450.0,0.00019762,2]
[359635487,1746202233539,-450.0,0.00019762,2]
[359635488,1746202233550,-567.54,0.00019762,2]
[359635489,1746202233561,-469.6,0.00019762,2]
[359635490,1746202233572,-450.0,0.00019762,2]
[359635491,1746202233583,-463.39,0.00019762,2]
[359635492,1746202233594,-450.0,0.00019762,2]
[359635493,1746202233604,-438.83767395,0.00019762,2]
[359635494,1746202233615,-450.0,0.00019762,2]
[359635495,1746202233625,-673.64,0.00019762,2]
[359635496,1746202233636,-450.0,0.00019762,2]
[359635497,1746202233646,-450.0,0.00019762,2]
[359635498,1746202233656,-450.0,0.00019762,2]
[359635499,1746202233671,-493.0,0.00019762,2]
[359635500,1746202233681,-450.0,0.00019762,2]
[359635501,1746202233691,-450.0,0.00019762,2]
[359635502,1746202233701,-450.0,0.00019762,2]
[359635503,1746202233712,-450.0,0.00019762,2]
[359635504,1746202233722,-592.37,0.00019762,2]
[359635505,1746202233732,-686.19,0.00019762,2]
[359635506,1746202233742,-450.0,0.00019762,2]
[359635507,1746202233752,-450.0,0.00019762,2]
[359635508,1746202233763,-450.0,0.00019762,2]
[359635509,1746202233774,-1506.85,0.00019762,2]
[359635510,1746202233785,-450.0,0.00019762,2]
[359635511,1746202233795,-450.0,0.00019762,2]
[359635512,1746202233805,-450.0,0.00019762,2]
[359635513,1746202233815,-471.28589695,0.00019762,2]
[359635514,1746202233825,-450.0,0.00019762,2]
[359635515,1746202233835,-450.0,0.00019762,2]
[359635516,1746202233845,-450.0,0.00019762,2]
[359635517,1746202233855,-757.56,0.00019762,2]
[359635518,1746202233865,-450.0,0.00019762,2]
[359635519,1746202233877,-450.0,0.00019762,2]
[359635520,1746202233888,-422.17426588,0.00019762,2]
[359635521,1746202234007,-27.82573412,0.00019762,2]
[359635522,1746202234017,-690.47652874,0.00019762,2]
[359635523,1746202234030,-1832.79347126,0.00019762,2]
[359635524,1746202234040,-450.0,0.00019762,2]
[359635525,1746202234051,-450.0,0.00019762,2]
[359635526,1746202234061,-450.0,0.00019762,2]
[359635527,1746202234071,-333.10100663,0.00019762,2]
[359635528,1746202234081,-232.83883637,0.00019762,2]
[359635529,1746202234094,-238.80116363,0.00019762,2]
[359635530,1746202234104,-196.7181362,0.00019762,2]
[359635531,1746202234117,-253.2818638,0.00019762,2]
[359635532,1746202234127,-450.0,0.00019762,2]
[359635533,1746202234137,-770.14,0.00019762,2]
[359635534,1746202234147,-450.0,0.00019762,2]
[359635535,1746202234157,-1178.24,0.00019762,2]
[359635536,1746202234171,-450.0,0.00019762,2]
[359635537,1746202234181,-498.64,0.00019762,2]
[359635538,1746202234190,-476.07,0.00019762,2]
[359635539,1746202234200,-450.0,0.00019762,2]
[359635540,1746202234210,-450.0,0.00019762,2]
[359635541,1746202234221,-240.17556878,0.00019762,2]
[359635542,1746202234232,-640.54032554,0.00019762,2]
[359635543,1746202234248,-556.76410568,0.00019762,2]
[359635544,1746202234258,-69.75807296,0.00019762,2]
[359635545,1746202234270,-464.52192704,0.00019762,2]
[359635546,1746202234280,-91.36093164,0.00019762,2]
[359635547,1746202234292,-358.63906836,0.00019762,2]
[359635548,1746202234302,-450.0,0.00019762,2]
[359635549,1746202234311,-1983.60646346,0.00019762,2]
[359635550,1746202234323,-516.22353654,0.00019762,2]
[359635551,1746202234332,-450.0,0.00019762,2]
[359635552,1746202234342,-450.0,0.00019762,2]
[359635553,1746202234353,-450.0,0.00019762,2]
[359635554,1746202234363,-450.0,0.00019762,2]
[359635555,1746202234620,-799.64,0.00019762,2]
[359635556,1746202234630,-450.0,0.00019762,2]
[359635557,1746202234639,-450.0,0.00019762,2]
[359635558,1746202234649,-450.0,0.00019762,2]
[359635559,1746202234660,-450.0,0.00019762,2]
[359635560,1746202234669,-450.0,0.00019762,2]
[359635561,1746202234679,-450.0,0.00019762,2]
[359635562,1746202234688,-11083.32,0.00019762,2]
[359635563,1746202234697,-450.0,0.00019762,2]
[359635564,1746202234707,-451.49,0.00019762,2]